bitfinex/quotes_BTCUSD_20220405
["timestamp","ask_amount","ask_price","bid_price","bid_amount"]
[1649190546787,0.321443,45886.0,45882.0,0.00048141]
[1649190546788,0.632343,45886.0,45882.0,0.00048141]
[1649190546885,0.0109,45885.0,45882.0,0.00048141]
[1649190546983,0.321443,45884.0,45882.0,0.00048141]
[1649190547084,0.84517611,45883.0,45875.0,0.00392594]
[1649190547184,6.154e-05,45881.0,45875.0,0.00392594]
[1649190547282,0.321443,45880.0,45875.0,0.00392594]
[1649190547632,0.321443,45880.0,45875.0,0.002]
[1649190547732,0.5456204,45880.0,45875.0,0.002]
[1649190547841,0.27250384,45879.0,45875.0,0.002]
[1649190547942,0.375958,45878.0,45875.0,0.002]
[1649190548044,0.0545148,45877.0,45875.0,0.002]
[1649190548141,0.321443,45876.0,45875.0,0.002]
[1649190549093,0.621443,45876.0,45875.0,0.002]
[1649190554995,0.632343,45876.0,45875.0,0.002]
[1649190555098,0.332343,45876.0,45875.0,0.002]
[1649190555352,0.321491,45877.0,45876.0,0.14314775]
[1649190557306,0.62674377,45877.0,45876.0,0.14314775]
[1649190557454,0.92674377,45877.0,45876.0,0.14314775]
[1649190558101,0.92955927,45877.0,45876.0,0.14314775]
[1649190558503,1.58322927,45877.0,45876.0,0.14314775]
[1649190560138,1.2779765,45877.0,45876.0,0.14314775]
[1649190563648,0.9779765,45877.0,45876.0,0.14314775]
[1649190564346,2.27326775,45877.0,45876.0,0.14314775]
[1649190565249,2.28416775,45877.0,45876.0,0.14314775]
[1649190565349,2.27326775,45877.0,45876.0,0.14314775]
[1649190568290,2.27045225,45877.0,45876.0,0.14314775]
[1649190576693,0.975161,45877.0,45876.0,0.14314775]
[1649190585334,0.49966923,45877.0,45876.0,0.14314775]
[1649190585429,0.82115823,45877.0,45876.0,0.14314775]
[1649190590388,0.88115823,45877.0,45876.0,0.14314775]
[1649190590690,0.55966923,45877.0,45876.0,0.14314775]
[1649190590886,0.55966923,45877.0,45876.0,0.18664775]
[1649190591989,0.55966923,45877.0,45876.0,0.36469166]
[1649190592090,6.154e-05,45881.0,45877.0,1.1]
[1649190592193,6.154e-05,45881.0,45877.0,1.27804391]
[1649190592290,6.154e-05,45881.0,45878.0,0.0435]
[1649190592390,6.154e-05,45881.0,45878.0,0.24631351]
[1649190592493,6.154e-05,45881.0,45878.0,0.0435]
[1649190592590,6.154e-05,45881.0,45879.0,0.26000507]
[1649190592841,6.154e-05,45881.0,45879.0,0.29260507]
[1649190593646,6.154e-05,45881.0,45879.0,0.30350507]
[1649190594796,6.154e-05,45881.0,45879.0,0.29260507]
[1649190594899,0.321489,45880.0,45879.0,0.04438895]
[1649190595197,0.321489,45880.0,45879.0,0.00088895]
[1649190596500,0.621489,45880.0,45879.0,0.00088895]
[1649190597941,0.621489,45880.0,45879.0,0.00080006]
[1649190599190,0.671489,45880.0,45879.0,0.00080006]
[1649190601695,1.55,45879.0,45876.0,0.04670034]
[1649190601843,0.05066,45878.0,45876.0,0.04670034]
[1649190601943,0.36670844,45878.0,45877.0,0.00053112]
[1649190602041,0.61670844,45878.0,45877.0,0.00053112]
[1649190602194,0.71670844,45878.0,45876.0,0.04670034]
[1649190602292,1.85,45877.0,45876.0,0.04670034]
[1649190602442,2.43749781,45877.0,45876.0,0.04670034]
[1649190602540,2.54839781,45877.0,45876.0,0.04670034]
[1649190602641,2.54839781,45877.0,45875.0,0.002]
[1649190602642,1.55,45876.0,45875.0,0.002]
[1649190602742,1.60066,45876.0,45875.0,0.002]
[1649190602845,1.75066,45876.0,45875.0,0.002]
[1649190602994,2.01667938,45876.0,45875.0,0.002]
[1649190603144,2.15933801,45876.0,45875.0,0.002]
[1649190603253,2.81327801,45876.0,45875.0,0.002]
[1649190603443,2.67061938,45876.0,45875.0,0.002]
[1649190603543,2.72061938,45876.0,45875.0,0.002]
[1649190603644,2.87125222,45876.0,45875.0,0.002]
[1649190603845,2.60523284,45876.0,45875.0,0.002]
[1649190603946,2.74789888,45876.0,45875.0,0.002]
[1649190604508,3.01393443,45876.0,45875.0,0.002]
[1649190604806,2.74789888,45876.0,45875.0,0.002]
[1649190604908,2.75104302,45876.0,45875.0,0.002]
[1649190605109,1.46712674,45876.0,45875.0,0.002]
[1649190605308,1.3244607,45876.0,45875.0,0.002]
[1649190605410,1.05837698,45876.0,45875.0,0.002]
[1649190605508,1.35837698,45876.0,45875.0,0.002]
[1649190605608,1.20774414,45876.0,45875.0,0.002]
[1649190609140,1.21326547,45876.0,45875.0,0.00265414]
[1649190609240,1.2187868,45876.0,45875.0,0.00265414]
[1649190609339,1.2187868,45876.0,45875.0,0.02158442]
[1649190609542,1.55,45875.0,45874.0,0.003]
[1649190609642,2.14848181,45875.0,45874.0,0.003]
[1649190609745,1.982389,45875.0,45874.0,0.003]
[1649190609849,3.299629,45875.0,45874.0,0.003]
[1649190609943,3.64229859,45875.0,45874.0,0.003]
[1649190610145,1.58976,45874.0,45868.0,0.002]
[1649190610243,0.96484,45873.0,45868.0,0.002]
[1649190610344,0.376016,45872.0,45868.0,0.002]
[1649190610443,0.96484,45871.0,45868.0,0.002]
[1649190610543,1.0046,45871.0,45868.0,0.002]
[1649190610643,1.1046,45871.0,45868.0,0.002]
[1649190613557,1.1546,45871.0,45868.0,0.002]
[1649190613655,0.8546,45871.0,45868.0,0.002]
[1649190613755,0.7546,45871.0,45868.0,0.002]
[1649190613953,0.7437,45871.0,45868.0,0.002]
[1649190614455,0.75474266,45871.0,45868.0,0.002]
[1649190614556,1.00474266,45871.0,45868.0,0.002]
[1649190615152,1.00474266,45871.0,45868.0,0.00254987]
[1649190615488,1.05474266,45871.0,45868.0,0.00254987]
[1649190616095,1.05474266,45871.0,45868.0,0.002]
[1649190616390,1.05474266,45871.0,45868.0,0.00254987]
[1649190617293,1.05474266,45871.0,45868.0,0.002]
[1649190617498,1.05474266,45871.0,45868.0,0.00254987]
[1649190617999,1.05474266,45871.0,45870.0,0.00340001]
[1649190619095,1.16564266,45871.0,45870.0,0.00340001]
[1649190619391,1.30834395,45871.0,45870.0,0.00340001]
[1649190619589,1.35184395,45871.0,45870.0,0.00340001]
[1649190620592,2.00236704,45871.0,45870.0,0.00340001]
[1649190624411,1.70236704,45871.0,45870.0,0.00340001]
[1649190624508,1.77331887,45871.0,45870.0,0.00340001]
[1649190624709,1.63061758,45871.0,45870.0,0.00340001]
[1649190625414,1.55957508,45871.0,45870.0,0.00340001]
[1649190631962,1.78105,45871.0,45870.0,0.00340001]
[1649190632261,1.55957508,45871.0,45870.0,0.00340001]
[1649190632611,2.22287508,45871.0,45870.0,0.00340001]
[1649190633311,1.55957508,45871.0,45870.0,0.00340001]
[1649190633411,2.44435,45871.0,45870.0,0.00340001]
[1649190633512,2.22287508,45871.0,45870.0,0.00340001]
[1649190633861,2.44435,45871.0,45870.0,0.00340001]
[1649190633961,2.22287508,45871.0,45870.0,0.00340001]
[1649190634094,2.17937508,45871.0,45870.0,0.00340001]
[1649190635299,1.55,45870.0,45868.0,0.00251196]
[1649190635396,3.699629,45870.0,45868.0,0.002]
[1649190635502,3.799629,45870.0,45868.0,0.002]
[1649190635597,3.799629,45870.0,45868.0,0.00251196]
[1649190635999,3.81067166,45870.0,45868.0,0.00251196]
[1649190636249,3.96110408,45870.0,45868.0,0.00251196]
[1649190636550,4.01110408,45870.0,45868.0,0.002]
[1649190637101,1.79780408,45870.0,45868.0,0.002]
[1649190638134,2.07382846,45870.0,45868.0,0.002]
[1649190638281,0.03976,45868.0,45867.0,0.00548576]
[1649190638382,1.1937,45868.0,45867.0,0.00548576]
[1649190638629,1.2937,45868.0,45867.0,0.00548576]
[1649190638930,1.2937,45868.0,45867.0,0.0049738]
[1649190639234,1.44413242,45868.0,45867.0,0.0049738]
[1649190639583,1.49413242,45868.0,45867.0,0.0049738]
[1649190640183,1.3437,45868.0,45867.0,0.0049738]
[1649190641130,1.49400325,45868.0,45867.0,0.0049738]
[1649190641232,1.49952458,45868.0,45867.0,0.0049738]
[1649190641331,1.50504591,45868.0,45867.0,0.0049738]
[1649190641600,1.00504591,45868.0,45867.0,0.0049738]
[1649190642144,0.85474266,45868.0,45867.0,0.0049738]
[1649190642847,0.75474266,45868.0,45867.0,0.0049738]
[1649190643246,0.60066456,45868.0,45867.0,0.0049738]
[1649190643547,0.55066456,45868.0,45867.0,0.0049738]
[1649190645999,0.55066456,45868.0,45867.0,0.30783055]
[1649190646150,0.22918356,45868.0,45867.0,0.31873055]
[1649190646448,0.55066456,45868.0,45867.0,0.31873055]
[1649190646749,0.22918356,45868.0,45867.0,0.31873055]
[1649190646851,0.55066456,45868.0,45867.0,0.31873055]
[1649190647552,0.22918356,45868.0,45867.0,0.31873055]
[1649190649118,0.22918356,45868.0,45867.0,0.45905194]
[1649190652179,0.22918356,45868.0,45867.0,0.44815194]
[1649190652276,0.22611453,45868.0,45867.0,0.44815194]
[1649190655001,0.22611453,45868.0,45867.0,0.30783055]
[1649190656104,0.22611453,45868.0,45867.0,0.44815194]
[1649190657697,0.22611453,45868.0,45867.0,0.30783055]
[1649190658699,0.22611453,45868.0,45867.0,0.44815194]
[1649190659853,0.22611453,45868.0,45855.0,1.01058256]
[1649190659953,0.22611453,45868.0,45867.0,0.24238466]
[1649190660051,0.2205932,45868.0,45867.0,0.24238466]
[1649190660200,0.21507187,45868.0,45867.0,0.24238466]
[1649190660370,0.22611453,45868.0,45867.0,0.24238466]
[1649190660571,0.22611453,45868.0,45867.0,0.51356851]
[1649190660768,0.22611453,45868.0,45867.0,0.24238466]
[1649190661168,0.22611453,45868.0,45863.0,0.0109]
[1649190661769,0.22611453,45868.0,45865.0,0.25619455]
[1649190661873,0.22611453,45868.0,45863.0,0.0109]
[1649190661971,0.22611453,45868.0,45862.0,0.0109]
[1649190662174,0.26652591,45866.0,45862.0,0.0109]
[1649190662274,0.26652591,45866.0,45859.0,0.18902808]
[1649190662373,0.26652591,45866.0,45859.0,0.0109]
[1649190662573,0.26652591,45866.0,45858.0,0.0109]
[1649190662675,0.26652591,45866.0,45857.0,0.0109]
[1649190662872,0.054524,45865.0,45857.0,0.0109]
[1649190662973,0.28336008,45860.0,45856.0,0.0109]
[1649190663077,0.354524,45865.0,45856.0,0.0109]
[1649190663373,0.354524,45865.0,45859.0,0.0005371]
[1649190663473,0.054524,45865.0,45859.0,0.0005371]
[1649190663674,0.26652591,45866.0,45859.0,0.0005371]
[1649190663974,0.321481,45865.0,45859.0,0.0005371]
[1649190664201,0.26652591,45866.0,45859.0,0.0005371]
[1649190664202,0.25627077,45861.0,45859.0,0.0005371]
[1649190664402,0.25627077,45861.0,45855.0,0.0109]
[1649190664603,0.25627077,45861.0,45860.0,0.0005371]
[1649190665403,0.3,45865.0,45860.0,0.0005371]
[1649190665506,0.321481,45864.0,45860.0,0.0005371]
[1649190665605,0.26652591,45866.0,45855.0,0.283962]
[1649190665707,0.00552133,45862.0,45858.0,0.00051436]
[1649190665805,0.00382469,45863.0,45859.0,0.35]
[1649190665905,0.00382469,45863.0,45858.0,0.00051436]
[1649190666108,0.00353368,45863.0,45858.0,0.00051436]
[1649190666758,0.00353368,45863.0,45855.0,0.283962]
[1649190666856,0.00353368,45863.0,45856.0,0.321536]
[1649190666957,0.00353368,45863.0,45858.0,0.00051436]
[1649190667949,0.25509287,45861.0,45855.0,0.283962]
[1649190668046,0.00353368,45863.0,45855.0,0.46209008]
[1649190668147,0.00353368,45863.0,45858.0,0.0004953]
[1649190669148,0.27672191,45862.0,45855.0,0.46209008]
[1649190669348,0.27672191,45862.0,45858.0,0.00049682]
[1649190670351,0.27672191,45862.0,45855.0,0.46209008]
[1649190670453,0.00353368,45863.0,45855.0,0.46209008]
[1649190670551,0.00353368,45863.0,45858.0,0.00049683]
[1649190670704,0.26652591,45866.0,45858.0,0.00049683]
[1649190671001,0.00353368,45862.0,45858.0,0.00049683]
[1649190671626,0.00353368,45862.0,45855.0,0.17812808]
[1649190671829,0.00353368,45862.0,45858.0,0.00047832]
[1649190672328,0.2551883,45862.0,45858.0,0.00047832]
[1649190672629,0.30228366,45859.0,45858.0,0.00047832]
[1649190672829,0.30228366,45859.0,45855.0,0.17812808]
[1649190673030,0.30228366,45859.0,45858.0,0.00047886]
[1649190673331,0.26502158,45861.0,45858.0,0.00047886]
[1649190674035,0.26502158,45861.0,45855.0,0.17812808]
[1649190674234,0.26502158,45861.0,45857.0,0.00047886]
[1649190674636,0.321481,45860.0,45857.0,0.00047886]
[1649190674836,0.56502158,45861.0,45857.0,0.00047886]
[1649190674939,0.321481,45860.0,45857.0,0.00047886]
[1649190675237,0.321481,45860.0,45852.0,0.17912808]
[1649190675363,0.56502158,45861.0,45852.0,0.17912808]
[1649190675456,0.321481,45860.0,45856.0,0.0004801]
[1649190675658,0.321481,45858.0,45856.0,0.0004801]
[1649190675759,0.621481,45857.0,45856.0,0.0004801]
[1649190676458,0.321481,45856.0,45852.0,0.001]
[1649190676609,0.24840329,45855.0,45854.0,0.00048069]
[1649190676708,0.60299639,45855.0,45854.0,0.00048069]
[1649190676910,0.84703335,45855.0,45854.0,0.00048069]
[1649190677611,0.59863006,45855.0,45852.0,0.001]
[1649190677711,0.321481,45854.0,45852.0,0.001]
[1649190677813,0.321481,45854.0,45852.0,0.0014807]
[1649190678112,0.27714906,45855.0,45852.0,0.0014807]
[1649190678513,0.321481,45854.0,45852.0,0.0014807]
[1649190678614,0.321481,45853.0,45852.0,0.0014807]
[1649190678712,0.27714906,45855.0,45852.0,0.0014807]
[1649190678811,0.27714906,45855.0,45852.0,0.001]
[1649190679152,0.321481,45854.0,45852.0,0.001]
[1649190679353,0.321481,45853.0,45852.0,0.001]
[1649190680003,0.27714906,45855.0,45852.0,0.001]
[1649190681411,0.321481,45854.0,45852.0,0.001]
[1649190682612,0.621481,45854.0,45852.0,0.001]
[1649190683055,0.321481,45854.0,45852.0,0.001]
[1649190683258,0.621481,45854.0,45852.0,0.001]
[1649190683357,0.321481,45854.0,45852.0,0.001]
[1649190684456,0.81082769,45854.0,45852.0,0.001]
[1649190684757,0.86536634,45854.0,45852.0,0.001]
[1649190684908,0.56536634,45854.0,45852.0,0.001]
[1649190685411,0.3,45853.0,45852.0,0.001]
[1649190685509,0.632381,45853.0,45852.0,0.001]
[1649190685860,0.84745287,45853.0,45852.0,0.001]
[1649190688568,0.89745287,45853.0,45852.0,0.001]
[1649190689121,1.56075287,45853.0,45851.0,0.002]
[1649190689216,1.295681,45852.0,45851.0,0.002]
[1649190689317,1.61075287,45852.0,45851.0,0.002]
[1649190689416,1.70425287,45852.0,45851.0,0.002]
[1649190689620,1.75425287,45852.0,45851.0,0.002]
[1649190689720,2.08425287,45852.0,45851.0,0.001]
[1649190689818,2.08425287,45852.0,45850.0,0.002]
[1649190689921,2.08425287,45852.0,45849.0,0.00353665]
[1649190689922,3.034781,45851.0,45849.0,0.00353665]
[1649190690021,1.51076287,45850.0,45849.0,0.00353665]
[1649190690220,1.65426287,45850.0,45849.0,0.00353665]
[1649190690471,1.65426287,45850.0,45847.0,0.003]
[1649190690472,2.534781,45849.0,45847.0,0.003]
[1649190690570,2.645691,45849.0,45847.0,0.003]
[1649190690670,2.125891,45849.0,45847.0,0.003]
[1649190690770,0.575891,45849.0,45847.0,0.003]
[1649190690971,1.075891,45849.0,45847.0,0.003]
[1649190691173,1.35441411,45849.0,45847.0,0.003]
[1649190691471,1.30441411,45849.0,45847.0,0.003]
[1649190692023,1.35441411,45849.0,45847.0,0.003]
[1649190692124,1.495691,45848.0,45847.0,0.003]
[1649190692224,1.71076287,45848.0,45847.0,0.003]
[1649190692329,1.85426287,45848.0,45847.0,0.003]
[1649190692525,0.89096287,45848.0,45847.0,0.003]
[1649190692724,0.89096287,45848.0,45843.0,0.001]
[1649190692725,1.55,45847.0,45843.0,0.001]
[1649190692829,0.64746287,45847.0,45843.0,0.001]
[1649190693027,0.69096287,45847.0,45843.0,0.001]
[1649190693428,0.69096287,45847.0,45846.0,0.00174408]
[1649190694216,0.59096287,45847.0,45846.0,0.00174408]
[1649190694765,0.54746287,45847.0,45846.0,0.00174408]
[1649190695918,0.53655287,45847.0,45846.0,0.00174408]
[1649190697423,0.84746287,45847.0,45846.0,0.00174408]
[1649190697524,1.04746287,45847.0,45846.0,0.00174408]
[1649190698566,1.09746287,45847.0,45846.0,0.00174408]
[1649190701271,0.74746287,45847.0,45846.0,0.00174408]
[1649190704250,1.04746287,45847.0,45846.0,0.00174408]
[1649190704349,0.74746287,45847.0,45846.0,0.00174408]
[1649190704851,1.04746287,45847.0,45846.0,0.00174408]
[1649190705559,1.09746287,45847.0,45846.0,0.00174408]
[1649190707864,1.76076287,45847.0,45846.0,0.00174408]
[1649190712173,1.86076287,45847.0,45846.0,0.00174408]
[1649190712476,2.36076287,45847.0,45846.0,0.00174408]
[1649190712913,2.06076287,45847.0,45846.0,0.00174408]
[1649190713209,1.96076287,45847.0,45846.0,0.00174408]
[1649190714259,1.29746287,45847.0,45846.0,0.00174408]
[1649190714360,1.29746287,45847.0,45846.0,0.00165743]
[1649190714460,0.79746287,45847.0,45846.0,0.00165743]
[1649190714560,1.09746287,45847.0,45846.0,0.00165743]
[1649190716065,0.79746287,45847.0,45846.0,0.00165743]
[1649190716165,1.09746287,45847.0,45846.0,0.00165743]
[1649190717512,1.59746287,45847.0,45846.0,0.00165743]
[1649190718014,2.26076287,45847.0,45846.0,0.00165743]
[1649190718412,2.36076287,45847.0,45846.0,0.00165743]
[1649190719014,2.51114693,45847.0,45846.0,0.00165743]
[1649190723918,2.77701138,45847.0,45846.0,0.00165743]
[1649190724461,2.51114693,45847.0,45846.0,0.00165743]
[1649190726063,2.77701138,45847.0,45846.0,0.00165743]
[1649190728005,2.51114693,45847.0,45846.0,0.00165743]
[1649190729105,1.84784693,45847.0,45846.0,0.00165743]
[1649190730061,2.11385324,45847.0,45846.0,0.00165743]
[1649190730815,1.84784693,45847.0,45846.0,0.00165743]
[1649190731256,2.51114693,45847.0,45846.0,0.00165743]
[1649190733588,1.84784693,45847.0,45846.0,0.00165743]
[1649190736259,1.84784693,45847.0,45846.0,0.00137285]
[1649190736560,1.84784693,45847.0,45846.0,0.0012952]
[1649190736561,1.83693693,45847.0,45846.0,0.0012952]
[1649190736762,1.83693693,45847.0,45846.0,0.00100102]
[1649190737718,1.97969316,45847.0,45846.0,0.00100102]
[1649190737965,1.83693693,45847.0,45846.0,0.00100102]
[1649190738066,1.43693693,45847.0,45846.0,0.00100102]
[1649190738469,1.23693693,45847.0,45846.0,0.00100102]
[1649190738569,1.18693693,45847.0,45846.0,0.00100102]
[1649190738720,1.03655287,45847.0,45846.0,0.00100102]
[1649190739124,1.03655287,45847.0,45846.0,0.27236519]
[1649190739628,0.53655287,45847.0,45846.0,0.27236519]
[1649190739730,0.06072657,45847.0,45846.0,0.27236519]
[1649190742186,0.06072657,45847.0,45846.0,0.50463383]
[1649190742684,0.06072657,45847.0,45846.0,0.83719083]
[1649190743219,0.06072657,45847.0,45846.0,0.88069083]
[1649190743369,0.06011657,45847.0,45846.0,1.05896971]
[1649190743469,0.06011657,45847.0,45846.0,0.88069083]
[1649190743572,0.06011657,45847.0,45846.0,0.55904383]
[1649190743668,0.06011657,45847.0,45846.0,0.88069083]
[1649190743870,0.06011657,45847.0,45846.0,0.55904383]
[1649190743969,0.06011657,45847.0,45846.0,0.88069083]
[1649190744069,0.06011657,45847.0,45846.0,0.61356083]
[1649190744173,0.06011657,45847.0,45846.0,0.93520783]
[1649190744369,0.06011657,45847.0,45846.0,0.61356083]
[1649190744472,0.06011657,45847.0,45846.0,0.93520783]
[1649190744670,0.06011657,45847.0,45846.0,0.61356083]
[1649190744771,0.06011657,45847.0,45846.0,0.93520783]
[1649190744973,0.05651657,45847.0,45846.0,0.93520783]
[1649190745375,0.30050801,45864.0,45847.0,1.64086024]
[1649190745473,0.5,45863.0,45852.0,0.05451]
[1649190745623,0.5,45863.0,45862.0,0.28613209]
[1649190745723,0.00050801,45864.0,45861.0,0.2333546]
[1649190746121,0.05,45865.0,45854.0,0.0109]
[1649190746322,0.05,45865.0,45854.0,0.0435]
[1649190746424,0.05050807,45865.0,45854.0,0.0435]
[1649190746654,0.00050807,45865.0,45854.0,0.0435]
[1649190746743,0.00050807,45865.0,45862.0,0.29394001]
[1649190746946,0.00050807,45865.0,45855.0,0.3]
[1649190747045,0.00050807,45865.0,45854.0,0.0435]
[1649190747145,0.00050807,45865.0,45858.0,0.29514324]
[1649190747394,0.2867894,45867.0,45858.0,0.29514324]
[1649190747494,0.05,45866.0,45858.0,0.29514324]
[1649190747695,0.00023138,45864.0,45858.0,0.29514324]
[1649190747901,0.22873031,45863.0,45859.0,0.27020877]
[1649190747995,0.22873031,45863.0,45854.0,0.0435]
[1649190748899,0.22873031,45863.0,45850.0,0.27361]
[1649190749001,0.24306937,45854.0,45850.0,0.27361]
[1649190749101,0.24306937,45854.0,45850.0,0.01091]
[1649190749198,0.24306937,45854.0,45848.0,0.0435]
[1649190749199,0.29760237,45854.0,45853.0,0.28503007]
[1649190749300,0.29760237,45854.0,45849.0,0.01091]
[1649190750470,0.29760237,45854.0,45850.0,0.24537758]
[1649190752169,0.29760237,45854.0,45849.0,0.01091]
[1649190752269,0.05453828,45853.0,45849.0,0.01091]
[1649190752470,0.16361628,45853.0,45850.0,0.00090455]
[1649190752571,0.05453828,45853.0,45850.0,0.00090455]
[1649190752673,0.10907628,45853.0,45850.0,0.00090455]
[1649190756273,0.10907628,45853.0,45848.0,0.3098908]
[1649190757375,0.10907628,45853.0,45848.0,0.01091]
[1649190757481,0.40907628,45853.0,45848.0,0.01091]
[1649190757580,0.40907628,45853.0,45847.0,0.06748601]
[1649190757782,0.054546,45852.0,45847.0,0.06748601]
[1649190758173,0.054546,45852.0,45847.0,0.06695788]
[1649190758374,0.26399952,45848.0,45847.0,0.067486]
[1649190759428,0.26399952,45848.0,45847.0,0.06695788]
[1649190760128,0.26399952,45848.0,45847.0,0.06604625]
[1649190763011,0.05,45850.0,45847.0,0.06604625]
[1649190763615,0.0109,45851.0,45847.0,0.06604625]
[1649190763717,0.0532907,45852.0,45847.0,0.06604625]
[1649190764020,0.0532907,45852.0,45849.0,0.29894408]
[1649190764619,0.0032907,45852.0,45849.0,0.29894408]
[1649190765118,0.0032907,45852.0,45850.0,0.25046093]
[1649190765223,0.0032907,45852.0,45850.0,0.30497393]
[1649190766720,0.0032907,45852.0,45850.0,0.25046093]
[1649190767872,0.00318627,45852.0,45850.0,0.25046093]
[1649190768428,0.00318627,45852.0,45849.0,0.29894408]
[1649190768429,0.00318627,45852.0,45848.0,0.0435]
[1649190768523,0.00318627,45852.0,45847.0,0.0669452]
[1649190768923,0.00318627,45852.0,45847.0,0.06604625]
[1649190769374,0.26540832,45851.0,45847.0,0.06604625]
[1649190769471,0.3,45850.0,45847.0,0.06604625]
[1649190769670,0.35454745,45850.0,45847.0,0.06604625]
[1649190771472,0.16498644,45849.0,45847.0,0.06604625]
[1649190771572,0.31900119,45848.0,45847.0,0.06604625]
[1649190771674,0.61900119,45848.0,45847.0,0.06604625]
[1649190771870,1.01684444,45848.0,45847.0,0.06604625]
[1649190772671,0.61900119,45848.0,45847.0,0.06604625]
[1649190773718,0.96005809,45848.0,45847.0,0.06604625]
[1649190774373,1.22096809,45848.0,45847.0,0.06604625]
[1649190774472,1.27096809,45848.0,45847.0,0.06604625]
[1649190774572,1.36333809,45848.0,45847.0,0.06604625]
[1649190774776,2.01767809,45848.0,45847.0,0.06604625]
[1649190775326,1.99497809,45848.0,45847.0,0.06604625]
[1649190775525,2.18775359,45848.0,45847.0,0.06604625]
[1649190775624,2.68775359,45848.0,45847.0,0.06604625]
[1649190776426,2.83822427,45848.0,45847.0,0.06604625]
[1649190776765,2.83822427,45848.0,45847.0,0.06688016]
[1649190776866,2.49716737,45848.0,45847.0,0.06688016]
[1649190776967,2.35439187,45848.0,45847.0,0.06688016]
[1649190777265,3.01769187,45848.0,45847.0,0.06688016]
[1649190777366,3.01769187,45848.0,45846.0,0.00100102]
[1649190777367,3.06119187,45848.0,45846.0,0.00100102]
[1649190777468,3.02421,45847.0,45846.0,0.00100102]
[1649190777568,3.67855,45847.0,45846.0,0.00100102]
[1649190777669,1.55,45846.0,45835.0,0.001]
[1649190777766,1.55,45846.0,45835.0,0.0031002]
[1649190777767,0.2,45841.0,45835.0,0.0031002]
[1649190777869,1.17421,45841.0,45835.0,0.0031002]
[1649190777968,2.2133,45840.0,45835.0,0.0031002]
[1649190778066,0.66525,45839.0,45835.0,0.0031002]
[1649190778266,0.42436784,45838.0,45835.0,0.0031002]
[1649190778368,1.28961784,45838.0,45835.0,0.0031002]
[1649190778667,1.28961784,45838.0,45835.0,0.001]
[1649190779518,1.33961784,45838.0,45835.0,0.001]
[1649190779869,0.91525,45838.0,45835.0,0.001]
[1649190779969,1.21525,45838.0,45835.0,0.001]
[1649190780271,0.91525,45838.0,45835.0,0.001]
[1649190780585,1.36525,45838.0,45835.0,0.001]
[1649190780685,1.16525,45838.0,45835.0,0.001]
[1649190780988,0.68932863,45838.0,45835.0,0.001]
[1649190781139,0.70023863,45838.0,45835.0,0.001]
[1649190781235,0.68932863,45838.0,45835.0,0.001]
[1649190781740,0.18932863,45838.0,45835.0,0.001]
[1649190782487,0.48932863,45838.0,45835.0,0.001546]
[1649190783390,0.70023863,45838.0,45835.0,0.001546]
[1649190783489,0.70023863,45838.0,45835.0,0.001]
[1649190783587,0.75023863,45838.0,45835.0,0.001]
[1649190783691,0.75023863,45838.0,45835.0,0.001546]
[1649190784119,0.45023863,45838.0,45835.0,0.001546]
[1649190784671,0.40023863,45838.0,45835.0,0.001]
[1649190784873,0.40023863,45838.0,45835.0,0.001546]
[1649190785273,0.20023863,45838.0,45835.0,0.001546]
[1649190785922,0.20023863,45838.0,45835.0,0.001]
[1649190786021,0.13614863,45838.0,45835.0,0.001546]
[1649190787073,0.01091,45838.0,45835.0,0.001]
[1649190787174,0.6654,45838.0,45835.0,0.001]
[1649190787276,0.6654,45838.0,45835.0,0.00153407]
[1649190787526,0.9654,45838.0,45835.0,0.00153407]
[1649190787624,0.6654,45838.0,45835.0,0.00153407]
[1649190788223,0.6654,45838.0,45835.0,0.001]
[1649190789074,0.9654,45838.0,45835.0,0.001]
[1649190789273,0.6654,45838.0,45835.0,0.001]
[1649190789523,0.9654,45838.0,45835.0,0.001]
[1649190789726,0.6654,45838.0,45835.0,0.001]
[1649190789924,0.9654,45838.0,45835.0,0.001]
[1649190790224,0.95449,45838.0,45835.0,0.001]
[1649190790624,1.00449,45838.0,45835.0,0.001]
[1649190790825,1.00449,45838.0,45835.0,0.00154381]
[1649190791675,0.70449,45838.0,45835.0,0.00154381]
[1649190791866,0.70449,45838.0,45835.0,0.001]
[1649190791962,1.00449,45838.0,45835.0,0.001]
[1649190792064,1.00449,45838.0,45835.0,0.00154381]
[1649190793065,1.00449,45838.0,45835.0,0.001]
[1649190793266,1.00449,45838.0,45835.0,0.00154381]
[1649190794271,1.00449,45838.0,45835.0,0.001]
[1649190794524,1.00449,45838.0,45835.0,0.00154381]
[1649190794624,1.0154,45838.0,45835.0,0.00154381]
[1649190794974,0.52854464,45837.0,45835.0,0.00154381]
[1649190795073,1.22653464,45837.0,45835.0,0.00154381]
[1649190795172,1.22653464,45837.0,45836.0,0.001]
[1649190795173,1.32653464,45837.0,45836.0,0.001]
[1649190795272,1.32675286,45837.0,45836.0,0.001]
[1649190795923,1.82675286,45837.0,45836.0,0.001]
[1649190796226,1.82675286,45837.0,45835.0,0.001]
[1649190796326,0.9633,45836.0,45832.0,2.82e-06]
[1649190796481,0.8633,45833.0,45832.0,2.82e-06]
[1649190796580,1.87288891,45833.0,45832.0,2.82e-06]
[1649190796679,1.96184051,45833.0,45830.0,0.00010282]
[1649190796774,0.67421,45832.0,45830.0,0.00010282]
[1649190796874,2.2133,45830.0,45823.0,0.001]
[1649190796977,0.2,45825.0,45823.0,0.001]
[1649190797075,0.89799,45825.0,45823.0,0.001]
[1649190797177,0.89799,45825.0,45818.0,0.004]
[1649190797277,3.07078136,45824.0,45817.0,0.001]
[1649190797376,0.19556316,45818.0,45817.0,0.001]
[1649190797625,0.49556316,45818.0,45817.0,0.001]
[1649190798127,0.19556316,45818.0,45817.0,0.001]
[1649190798228,1.15886316,45818.0,45817.0,0.001]
[1649190798428,0.49556316,45818.0,45817.0,0.001]
[1649190798629,1.81762214,45819.0,45817.0,0.001]
[1649190798729,0.65449,45818.0,45817.0,0.001]
[1649190800220,0.65449,45818.0,45817.0,0.3025505]
[1649190800924,0.65449,45818.0,45817.0,0.001]
[1649190801125,0.65449,45818.0,45815.0,0.00054395]
[1649190801126,0.65449,45818.0,45812.0,0.27390812]
[1649190801222,0.65449,45818.0,45812.0,0.27212875]
[1649190801325,0.30674197,45817.0,45812.0,0.27212875]